Department Family,Entity,Date,Expense Type,Expense Area,Supplier,Transaction Number,AP Amount,
Department of Health,St. Helens&Knowsley Hospitals NHS Trust,30/09/2020,Audit Fees: Statutory,FINANCE DIRECTORATE HQ,GRANT THORNTON UK LLP,35496414,"29,460.00",
Department of Health,St. Helens&Knowsley Hospitals NHS Trust,30/09/2020,Blood Products,HAEM + BLOOD TRANSFUSION,NHS BLOOD & TRANSPLANT,35582693,"100,601.09",
Department of Health,St. Helens&Knowsley Hospitals NHS Trust,30/09/2020,CNST contributions,CLINICAL NEGLIGENCE,NHSLACONT-T213,,"1,343,893.60",
Department of Health,St. Helens&Knowsley Hospitals NHS Trust,30/09/2020,Computer Hardware Purch,ETTF,BT PLC,35527899,"5,301.12",
Department of Health,St. Helens&Knowsley Hospitals NHS Trust,30/09/2020,Computer Hardware Purch,ETTF,BT PLC,35527899,741.12,
Department of Health,St. Helens&Knowsley Hospitals NHS Trust,30/09/2020,Computer Hardware Purch,ETTF,BT PLC,35527899,"2,146.66",
Department of Health,St. Helens&Knowsley Hospitals NHS Trust,30/09/2020,Computer Hardware Purch,ETTF,BT PLC,35527899,"24,317.08",
Department of Health,St. Helens&Knowsley Hospitals NHS Trust,30/09/2020,Computer Hardware Purch,ETTF,BT PLC,35527899,"7,781.00",
Department of Health,St. Helens&Knowsley Hospitals NHS Trust,30/09/2020,Computer Hardware Purch,ETTF,BT PLC,35527899,"13,057.73",
Department of Health,St. Helens&Knowsley Hospitals NHS Trust,30/09/2020,Computer Hardware Purch,HIS PROGRAMME COSTS - SHARED SERVICES,DELL FINANCIAL SERVICES,35456333,"254,579.66",
Department of Health,St. Helens&Knowsley Hospitals NHS Trust,30/09/2020,Computer Hardware Purch,HIS PROGRAMME COSTS - SHARED SERVICES,INSIGHT DIRECT (UK) LTD,35417893,"26,525.50",
Department of Health,St. Helens&Knowsley Hospitals NHS Trust,30/09/2020,Computer Hardware Purch,HIS PROGRAMME COSTS - SHARED SERVICES,INSIGHT DIRECT (UK) LTD,35417893,"5,305.10",
Department of Health,St. Helens&Knowsley Hospitals NHS Trust,30/09/2020,Computer Maintenance,HIS PROGRAMME COSTS - SHARED SERVICES,INSIGHT DIRECT (UK) LTD,35704154,"12,320.00",
Department of Health,St. Helens&Knowsley Hospitals NHS Trust,30/09/2020,Computer Maintenance,HIS PROGRAMME COSTS - SHARED SERVICES,INSIGHT DIRECT (UK) LTD,35704154,"77,952.00",
Department of Health,St. Helens&Knowsley Hospitals NHS Trust,30/09/2020,Computer Maintenance,HIS PROGRAMME COSTS - SHARED SERVICES,INSIGHT DIRECT (UK) LTD,35704154,"18,054.40",
Department of Health,St. Helens&Knowsley Hospitals NHS Trust,30/09/2020,Computer Software/License,HIS PROGRAMME COSTS - SHARED SERVICES,SPECIALIST COMPUTER CENTRES PLC,35704159,"2,869.60",
Department of Health,St. Helens&Knowsley Hospitals NHS Trust,30/09/2020,Computer Software/License,HIS PROGRAMME COSTS - SHARED SERVICES,SPECIALIST COMPUTER CENTRES PLC,35704159,74.66,
Department of Health,St. Helens&Knowsley Hospitals NHS Trust,30/09/2020,Computer Software/License,HIS PROGRAMME COSTS - SHARED SERVICES,SPECIALIST COMPUTER CENTRES PLC,35704159,292.80,
Department of Health,St. Helens&Knowsley Hospitals NHS Trust,30/09/2020,Computer Software/License,HIS PROGRAMME COSTS - SHARED SERVICES,SPECIALIST COMPUTER CENTRES PLC,35704159,175.68,
Department of Health,St. Helens&Knowsley Hospitals NHS Trust,30/09/2020,Computer Software/License,HIS PROGRAMME COSTS - SHARED SERVICES,SPECIALIST COMPUTER CENTRES PLC,35704159,206.00,
Department of Health,St. Helens&Knowsley Hospitals NHS Trust,30/09/2020,Computer Software/License,HIS PROGRAMME COSTS - SHARED SERVICES,SPECIALIST COMPUTER CENTRES PLC,35704159,"28,907.22",
Department of Health,St. Helens&Knowsley Hospitals NHS Trust,30/09/2020,Computer Software/License,HIS PROGRAMME COSTS - SHARED SERVICES,SPECIALIST COMPUTER CENTRES PLC,35704159,622.26,
Department of Health,St. Helens&Knowsley Hospitals NHS Trust,30/09/2020,Computer Software/License,HIS PROGRAMME COSTS - SHARED SERVICES,SPECIALIST COMPUTER CENTRES PLC,35704159,"11,218.45",
Department of Health,St. Helens&Knowsley Hospitals NHS Trust,30/09/2020,Computer Software/License,HIS PROGRAMME COSTS - SHARED SERVICES,SPECIALIST COMPUTER CENTRES PLC,35704159,91.49,
Department of Health,St. Helens&Knowsley Hospitals NHS Trust,30/09/2020,Computer Software/License,HIS PROGRAMME COSTS - SHARED SERVICES,SPECIALIST COMPUTER CENTRES PLC,35704159,"8,754.40",
Department of Health,St. Helens&Knowsley Hospitals NHS Trust,30/09/2020,Computer Software/License,HIS PROGRAMME COSTS - SHARED SERVICES,SPECIALIST COMPUTER CENTRES PLC,35704159,"2,393.82",
Department of Health,St. Helens&Knowsley Hospitals NHS Trust,30/09/2020,Continence Products,COMMUNITY CONTINENCE SERVICE,ESSITY UK LTD,35661387,"35,017.96",
Department of Health,St. Helens&Knowsley Hospitals NHS Trust,30/09/2020,Data Lines,HIS PROGRAMME COSTS - SHARED SERVICES,VIRGIN MEDIA BUSINESS LTD,35661436,"76,698.40",
Department of Health,St. Helens&Knowsley Hospitals NHS Trust,30/09/2020,Equip Maint Contracts,RADIOGRAPHY WHISTON,GE MEDICAL SYSTEMS LTD,35617365,"20,855.06",
Department of Health,St. Helens&Knowsley Hospitals NHS Trust,30/09/2020,Equip Maint Contracts,RADIOGRAPHY WHISTON,GE MEDICAL SYSTEMS LTD,35617365,886.37,
Department of Health,St. Helens&Knowsley Hospitals NHS Trust,30/09/2020,Equip Maint Contracts,RADIOGRAPHY WHISTON,GE MEDICAL SYSTEMS LTD,35617365,"16,460.19",
Department of Health,St. Helens&Knowsley Hospitals NHS Trust,30/09/2020,Equip Maint Contracts,RADIOGRAPHY WHISTON,GE MEDICAL SYSTEMS LTD,35617365,"7,640.32",
Department of Health,St. Helens&Knowsley Hospitals NHS Trust,30/09/2020,Lab Equip Maint Contracts,CHEMICAL PATHOLOGY DEPT,SIEMENS HEALTHCARE DIAGNOSTICS LTD,35561263,"75,742.47",
Department of Health,St. Helens&Knowsley Hospitals NHS Trust,30/09/2020,Laboratory Chemicals,HAEM + BLOOD TRANSFUSION,HAEMONETICS LTD,35661525,"32,610.38",
Department of Health,St. Helens&Knowsley Hospitals NHS Trust,30/09/2020,Laboratory Chemicals,HAEM + BLOOD TRANSFUSION,HAEMONETICS LTD,35661525,"6,522.08",
Department of Health,St. Helens&Knowsley Hospitals NHS Trust,30/09/2020,Laboratory Chemicals,HAEM + BLOOD TRANSFUSION,SYSMEX UK LTD,35661533,"119,576.13",
Department of Health,St. Helens&Knowsley Hospitals NHS Trust,30/09/2020,Laboratory Chemicals,HAEM + BLOOD TRANSFUSION,SYSMEX UK LTD,35661533,"23,915.23",
Department of Health,St. Helens&Knowsley Hospitals NHS Trust,30/09/2020,Laboratory Chemicals,HAEM + BLOOD TRANSFUSION,SYSMEX UK LTD,35710990,"23,472.86",
Department of Health,St. Helens&Knowsley Hospitals NHS Trust,30/09/2020,Laboratory Chemicals,HAEM + BLOOD TRANSFUSION,SYSMEX UK LTD,35710990,"4,694.57",
Department of Health,St. Helens&Knowsley Hospitals NHS Trust,30/09/2020,Laboratory Reagents,MICROBIOLOGY DEPT,CHRYSTAL CONSULTING LTD,35155899,"63,360.49",
Department of Health,St. Helens&Knowsley Hospitals NHS Trust,30/09/2020,Laboratory Reagents,MICROBIOLOGY DEPT,CHRYSTAL CONSULTING LTD,35155899,"51,324.22",
Department of Health,St. Helens&Knowsley Hospitals NHS Trust,30/09/2020,Laboratory Reagents,MICROBIOLOGY DEPT,CHRYSTAL CONSULTING LTD,35155901,"9,870.04",
Department of Health,St. Helens&Knowsley Hospitals NHS Trust,30/09/2020,Laboratory Reagents,MICROBIOLOGY DEPT,CHRYSTAL CONSULTING LTD,35155901,"107,328.33",
Department of Health,St. Helens&Knowsley Hospitals NHS Trust,30/09/2020,Laboratory Reagents,MICROBIOLOGY DEPT,CHRYSTAL CONSULTING LTD,35155901,"13,070.13",
Department of Health,St. Helens&Knowsley Hospitals NHS Trust,30/09/2020,Laboratory Reagents,MICROBIOLOGY DEPT,CHRYSTAL CONSULTING LTD,35155903,"13,186.28",
Department of Health,St. Helens&Knowsley Hospitals NHS Trust,30/09/2020,Laboratory Reagents,MICROBIOLOGY DEPT,CHRYSTAL CONSULTING LTD,35155903,"30,480.41",
Department of Health,St. Helens&Knowsley Hospitals NHS Trust,30/09/2020,Laboratory Reagents,MICROBIOLOGY DEPT,CHRYSTAL CONSULTING LTD,35155903,"8,733.34",
Department of Health,St. Helens&Knowsley Hospitals NHS Trust,30/09/2020,Laboratory Reagents,HISTOPATHOLOGY/MORTUARY,ROCHE DIAGNOSTICS LTD,35455362,"93,960.75",
Department of Health,St. Helens&Knowsley Hospitals NHS Trust,30/09/2020,Laboratory Reagents,HISTOPATHOLOGY/MORTUARY,ROCHE DIAGNOSTICS LTD,35455362,"18,792.15",
Department of Health,St. Helens&Knowsley Hospitals NHS Trust,30/09/2020,Laboratory Reagents,HISTOPATHOLOGY/MORTUARY,ROCHE DIAGNOSTICS LTD,35470274,"93,960.75",
Department of Health,St. Helens&Knowsley Hospitals NHS Trust,30/09/2020,Laboratory Reagents,HISTOPATHOLOGY/MORTUARY,ROCHE DIAGNOSTICS LTD,35470274,"18,792.15",
Department of Health,St. Helens&Knowsley Hospitals NHS Trust,30/09/2020,Lease Rents,PFI DESIGN + CONSTRUCTION,EDDISONS COMMERCIAL PROPERTY MANAGEMENT LTD,35616434,"62,400.00",
Department of Health,St. Helens&Knowsley Hospitals NHS Trust,30/09/2020,Lease Rents,PFI DESIGN + CONSTRUCTION,HLGB,35632589,"34,035.00",
Department of Health,St. Helens&Knowsley Hospitals NHS Trust,30/09/2020,Lease Rents,HIS PROGRAMME COSTS - SHARED SERVICES,OAKMERE ESTATES (LIVERPOOL) LTD,35431509,"103,500.00",
Department of Health,St. Helens&Knowsley Hospitals NHS Trust,30/09/2020,Lease Rents,HIS PROGRAMME COSTS - SHARED SERVICES,OAKMERE ESTATES (LIVERPOOL) LTD,35509529,"34,500.00",
Department of Health,St. Helens&Knowsley Hospitals NHS Trust,30/09/2020,Med & Surg Equip Disp,GEN MED ENDOSCOPY H2,BOSTON SCIENTIFIC LTD,35527130,"26,354.85",
Department of Health,St. Helens&Knowsley Hospitals NHS Trust,30/09/2020,Med & Surg Equip Disp,GEN MED ENDOSCOPY H2,BOSTON SCIENTIFIC LTD,35527130,"5,270.97",
Department of Health,St. Helens&Knowsley Hospitals NHS Trust,30/09/2020,Med & Surg Equip Disp,WHIS THEATRES ANCIL & EMERG SUP STAFF,FULL SUPPORT HEALTHCARE LTD,35571424,98.00,
Department of Health,St. Helens&Knowsley Hospitals NHS Trust,30/09/2020,Med & Surg Equip Disp,WHIS THEATRES ANCIL & EMERG SUP STAFF,FULL SUPPORT HEALTHCARE LTD,35571424,400.00,
Department of Health,St. Helens&Knowsley Hospitals NHS Trust,30/09/2020,Med & Surg Equip Disp,WHIS THEATRES ANCIL & EMERG SUP STAFF,FULL SUPPORT HEALTHCARE LTD,35571424,687.50,
Department of Health,St. Helens&Knowsley Hospitals NHS Trust,30/09/2020,Med & Surg Equip Disp,WHIS THEATRES ANCIL & EMERG SUP STAFF,FULL SUPPORT HEALTHCARE LTD,35571424,110.00,
Department of Health,St. Helens&Knowsley Hospitals NHS Trust,30/09/2020,Med & Surg Equip Disp,WHIS THEATRES ANCIL & EMERG SUP STAFF,FULL SUPPORT HEALTHCARE LTD,35571424,75.00,
Department of Health,St. Helens&Knowsley Hospitals NHS Trust,30/09/2020,Med & Surg Equip Disp,WHIS THEATRES ANCIL & EMERG SUP STAFF,FULL SUPPORT HEALTHCARE LTD,35571424,"35,000.00",
Department of Health,St. Helens&Knowsley Hospitals NHS Trust,30/09/2020,Med & Surg Equip Disp,WHIS THEATRES ANCIL & EMERG SUP STAFF,FULL SUPPORT HEALTHCARE LTD,35571424,310.00,
Department of Health,St. Helens&Knowsley Hospitals NHS Trust,30/09/2020,Med & Surg Equip Disp,WHIS THEATRES ANCIL & EMERG SUP STAFF,FULL SUPPORT HEALTHCARE LTD,35571424,360.00,
Department of Health,St. Helens&Knowsley Hospitals NHS Trust,30/09/2020,Med & Surg Equip General,THEATRES MAIN ST HELEN'S,AAH PHARMACEUTICALS LTD,35415609,26.04,
Department of Health,St. Helens&Knowsley Hospitals NHS Trust,30/09/2020,Med & Surg Equip General,COVID,ARJO UK LTD,35585624,"24,000.00",
Department of Health,St. Helens&Knowsley Hospitals NHS Trust,30/09/2020,Med & Surg Equip General,COVID,ARJO UK LTD,35585624,"4,800.00",
Department of Health,St. Helens&Knowsley Hospitals NHS Trust,30/09/2020,Med & Surg Equip General,COVID,JOERNS HEALTHCARE LTD,35596328,"22,844.25",
Department of Health,St. Helens&Knowsley Hospitals NHS Trust,30/09/2020,Med & Surg Equip General,COVID,JOERNS HEALTHCARE LTD,35596328,"4,568.85",
Department of Health,St. Helens&Knowsley Hospitals NHS Trust,30/09/2020,Med & Surg Maint Contract,COLD DECONTAMINATION,IM MED LTD,35723432,"27,948.38",
Department of Health,St. Helens&Knowsley Hospitals NHS Trust,30/09/2020,Med & Surg Maint Contract,COLD DECONTAMINATION,IM MED LTD,35723432,"41,253.75",
Department of Health,St. Helens&Knowsley Hospitals NHS Trust,30/09/2020,Miscellaneous Expenditure,HSDU WHISTON,SYNERGY HEALTH (UK) LTD,35487724,"175,882.15",
Department of Health,St. Helens&Knowsley Hospitals NHS Trust,30/09/2020,Mobile Phones,A + E NURSING WHISTON,VODAFONE LTD,35553729,108.00,
Department of Health,St. Helens&Knowsley Hospitals NHS Trust,30/09/2020,Mobile Phones,ACUTE KIDNEY INJURY SERVICE,VODAFONE LTD,35553729,36.00,
Department of Health,St. Helens&Knowsley Hospitals NHS Trust,30/09/2020,Mobile Phones,ACUTE MEDICAL UNIT,VODAFONE LTD,35553729,36.00,
Department of Health,St. Helens&Knowsley Hospitals NHS Trust,30/09/2020,Mobile Phones,AMU NURSE SPECIALISTS,VODAFONE LTD,35553729,297.54,
Department of Health,St. Helens&Knowsley Hospitals NHS Trust,30/09/2020,Mobile Phones,B + P DRESSINGS CLINIC,VODAFONE LTD,35553729,37.39,
Department of Health,St. Helens&Knowsley Hospitals NHS Trust,30/09/2020,Mobile Phones,B + P MEDICAL PHOTOGRAPHY,VODAFONE LTD,35553729,72.00,
Department of Health,St. Helens&Knowsley Hospitals NHS Trust,30/09/2020,Mobile Phones,B + P MEDICAL STAFF,VODAFONE LTD,35553729,108.00,
Department of Health,St. Helens&Knowsley Hospitals NHS Trust,30/09/2020,Mobile Phones,BED MANAGEMENT,VODAFONE LTD,35553729,189.36,
Department of Health,St. Helens&Knowsley Hospitals NHS Trust,30/09/2020,Mobile Phones,BEVAN COURT 1,VODAFONE LTD,35553729,117.00,
Department of Health,St. Helens&Knowsley Hospitals NHS Trust,30/09/2020,Mobile Phones,BUSINESS RELATIONSHIPS,VODAFONE LTD,35553729,44.68,
Department of Health,St. Helens&Knowsley Hospitals NHS Trust,30/09/2020,Mobile Phones,C.O.P.D SERVICE (KPCT),VODAFONE LTD,35553729,9.00,
Department of Health,St. Helens&Knowsley Hospitals NHS Trust,30/09/2020,Mobile Phones,C.O.P.D SERVICE (STHPCT),VODAFONE LTD,35553729,551.34,
Department of Health,St. Helens&Knowsley Hospitals NHS Trust,30/09/2020,Mobile Phones,CANCER CORE STAFF AND NON-PAY,VODAFONE LTD,35553729,36.00,
Department of Health,St. Helens&Knowsley Hospitals NHS Trust,30/09/2020,Mobile Phones,CANCER NURSE SPEC MCG,VODAFONE LTD,35553729,73.45,
Department of Health,St. Helens&Knowsley Hospitals NHS Trust,30/09/2020,Mobile Phones,CANCER NURSE SPEC SCG,VODAFONE LTD,35553729,70.20,
Department of Health,St. Helens&Knowsley Hospitals NHS Trust,30/09/2020,Mobile Phones,CANCER SERVICES - ADMIN,VODAFONE LTD,35553729,36.00,
Department of Health,St. Helens&Knowsley Hospitals NHS Trust,30/09/2020,Mobile Phones,CANCER SVS CO-ORDINATION,VODAFONE LTD,35553729,270.00,
Department of Health,St. Helens&Knowsley Hospitals NHS Trust,30/09/2020,Mobile Phones,CARDIO-RESPIRATORY (ECG),VODAFONE LTD,35553729,45.00,
Department of Health,St. Helens&Knowsley Hospitals NHS Trust,30/09/2020,Mobile Phones,CARDIOLOGY NURSING,VODAFONE LTD,35553729,90.00,
Department of Health,St. Helens&Knowsley Hospitals NHS Trust,30/09/2020,Mobile Phones,CARDIOLOGY SNR MEDICAL,VODAFONE LTD,35553729,72.00,
Department of Health,St. Helens&Knowsley Hospitals NHS Trust,30/09/2020,Mobile Phones,CARE OF ELDERLY MED STAFF,VODAFONE LTD,35553729,"1,028.80",
Department of Health,St. Helens&Knowsley Hospitals NHS Trust,30/09/2020,Mobile Phones,CHAIRMAN'S OFFICE,VODAFONE LTD,35553729,252.00,
Department of Health,St. Helens&Knowsley Hospitals NHS Trust,30/09/2020,Mobile Phones,CHIEF EXECUTIVE'S OFFICE,VODAFONE LTD,35553729,379.25,
Department of Health,St. Helens&Knowsley Hospitals NHS Trust,30/09/2020,Mobile Phones,CLINICAL GOVERNANCE TEAM,VODAFONE LTD,35553729,63.00,
Department of Health,St. Helens&Knowsley Hospitals NHS Trust,30/09/2020,Mobile Phones,CLINICAL PSYCHOLOGY,VODAFONE LTD,35553729,45.00,
Department of Health,St. Helens&Knowsley Hospitals NHS Trust,30/09/2020,Mobile Phones,CLINICAL SUPPORT DIV MGMT,VODAFONE LTD,35553729,36.66,
Department of Health,St. Helens&Knowsley Hospitals NHS Trust,30/09/2020,Mobile Phones,COE NURSE SPECIALISTS,VODAFONE LTD,35553729,81.06,
Department of Health,St. Helens&Knowsley Hospitals NHS Trust,30/09/2020,Mobile Phones,COLD DECONTAMINATION,VODAFONE LTD,35553729,36.00,
Department of Health,St. Helens&Knowsley Hospitals NHS Trust,30/09/2020,Mobile Phones,COLD DECONTAMINATION WHISTON,VODAFONE LTD,35553729,81.36,
Department of Health,St. Helens&Knowsley Hospitals NHS Trust,30/09/2020,Mobile Phones,COMMUNICATIONS,VODAFONE LTD,35553729,148.76,
Department of Health,St. Helens&Knowsley Hospitals NHS Trust,30/09/2020,Mobile Phones,COMMUNITY CARDIAC TEAM,VODAFONE LTD,35553729,424.76,
Department of Health,St. Helens&Knowsley Hospitals NHS Trust,30/09/2020,Mobile Phones,COMMUNITY CONTINENCE SERVICE,VODAFONE LTD,35553729,144.00,
Department of Health,St. Helens&Knowsley Hospitals NHS Trust,30/09/2020,Mobile Phones,COMMUNITY FRAILTY SERVICE,VODAFONE LTD,35553729,273.77,
Department of Health,St. Helens&Knowsley Hospitals NHS Trust,30/09/2020,Mobile Phones,COMMUNITY MIDWIFERY,VODAFONE LTD,35553729,"2,170.19",
Department of Health,St. Helens&Knowsley Hospitals NHS Trust,30/09/2020,Mobile Phones,COMMUNITY NURSING MANAGEMENT,VODAFONE LTD,35553729,149.59,
Department of Health,St. Helens&Knowsley Hospitals NHS Trust,30/09/2020,Mobile Phones,COMMUNITY PAEDIATRICS,VODAFONE LTD,35553729,878.77,
Department of Health,St. Helens&Knowsley Hospitals NHS Trust,30/09/2020,Mobile Phones,COMMUNITY SERVICES MANAGEMENT,VODAFONE LTD,35553729,125.59,
Department of Health,St. Helens&Knowsley Hospitals NHS Trust,30/09/2020,Mobile Phones,COMMUNITY SLA'S,VODAFONE LTD,35553729,368.24,
Department of Health,St. Helens&Knowsley Hospitals NHS Trust,30/09/2020,Mobile Phones,COMPLAINTS,VODAFONE LTD,35553729,65.20,
Department of Health,St. Helens&Knowsley Hospitals NHS Trust,30/09/2020,Mobile Phones,COVID,VODAFONE LTD,35553729,63.18,
Department of Health,St. Helens&Knowsley Hospitals NHS Trust,30/09/2020,Mobile Phones,DIABETES NURSING,VODAFONE LTD,35553729,72.00,
Department of Health,St. Helens&Knowsley Hospitals NHS Trust,30/09/2020,Mobile Phones,DIABETES SNR MEDICAL,VODAFONE LTD,35553729,72.00,
Department of Health,St. Helens&Knowsley Hospitals NHS Trust,30/09/2020,Mobile Phones,DIABETES STP,VODAFONE LTD,35553729,432.24,
Department of Health,St. Helens&Knowsley Hospitals NHS Trust,30/09/2020,Mobile Phones,DN CENTRAL,VODAFONE LTD,35553729,46.40,
Department of Health,St. Helens&Knowsley Hospitals NHS Trust,30/09/2020,Mobile Phones,DN SOUTH,VODAFONE LTD,35553729,70.26,
Department of Health,St. Helens&Knowsley Hospitals NHS Trust,30/09/2020,Mobile Phones,DUFFY SUITE INTERMEDIATE CARE UNIT,VODAFONE LTD,35553729,15.10,
Department of Health,St. Helens&Knowsley Hospitals NHS Trust,30/09/2020,Mobile Phones,EAST MIDLANDS HEE,VODAFONE LTD,35553729,72.00,
Department of Health,St. Helens&Knowsley Hospitals NHS Trust,30/09/2020,Mobile Phones,EMERGENCY PLANNING,VODAFONE LTD,35553729,36.00,
Department of Health,St. Helens&Knowsley Hospitals NHS Trust,30/09/2020,Mobile Phones,ENT MEDICAL STAFF,VODAFONE LTD,35553729,36.00,
Department of Health,St. Helens&Knowsley Hospitals NHS Trust,30/09/2020,Mobile Phones,EPMA,VODAFONE LTD,35553729,108.00,
Department of Health,St. Helens&Knowsley Hospitals NHS Trust,30/09/2020,Mobile Phones,ESTATE SURVEY SECTION,VODAFONE LTD,35553729,36.00,
Department of Health,St. Helens&Knowsley Hospitals NHS Trust,30/09/2020,Mobile Phones,EXECUTIVE PAYROLL,VODAFONE LTD,35553729,180.91,
Department of Health,St. Helens&Knowsley Hospitals NHS Trust,30/09/2020,Mobile Phones,FACILITIES MANAGEMENT,VODAFONE LTD,35553729,189.00,
Department of Health,St. Helens&Knowsley Hospitals NHS Trust,30/09/2020,Mobile Phones,FALLS NURSE,VODAFONE LTD,35553729,57.50,
Department of Health,St. Helens&Knowsley Hospitals NHS Trust,30/09/2020,Mobile Phones,FINANCE DIRECTORATE HQ,VODAFONE LTD,35553729,79.20,
Department of Health,St. Helens&Knowsley Hospitals NHS Trust,30/09/2020,Mobile Phones,GASTRO UPPER GI FUND,VODAFONE LTD,35553729,36.00,
Department of Health,St. Helens&Knowsley Hospitals NHS Trust,30/09/2020,Mobile Phones,GASTROLOGY NURSING,VODAFONE LTD,35553729,288.36,
Department of Health,St. Helens&Knowsley Hospitals NHS Trust,30/09/2020,Mobile Phones,GASTROLOGY SNR MEDICAL,VODAFONE LTD,35553729,217.38,
Department of Health,St. Helens&Knowsley Hospitals NHS Trust,30/09/2020,Mobile Phones,GEN MEDICINE MEDICAL STF,VODAFONE LTD,35553729,144.00,
Department of Health,St. Helens&Knowsley Hospitals NHS Trust,30/09/2020,Mobile Phones,GENERAL SURGERY MEDICAL,VODAFONE LTD,35553729,153.00,
Department of Health,St. Helens&Knowsley Hospitals NHS Trust,30/09/2020,Mobile Phones,HAEM + BLOOD TRANSFUSION,VODAFONE LTD,35553729,144.00,
Department of Health,St. Helens&Knowsley Hospitals NHS Trust,30/09/2020,Mobile Phones,HAEMATOLOGY MEDICAL,VODAFONE LTD,35553729,194.69,
Department of Health,St. Helens&Knowsley Hospitals NHS Trust,30/09/2020,Mobile Phones,HAIRDRESSER ST HELENS,VODAFONE LTD,35553729,36.00,
Department of Health,St. Helens&Knowsley Hospitals NHS Trust,30/09/2020,Mobile Phones,HIS PROGRAMME COSTS - SHARED SERVICES,VODAFONE LTD,35553729,"1,579.27",
Department of Health,St. Helens&Knowsley Hospitals NHS Trust,30/09/2020,Mobile Phones,HISTOPATHOLOGY/MORTUARY,VODAFONE LTD,35553729,18.48,
Department of Health,St. Helens&Knowsley Hospitals NHS Trust,30/09/2020,Mobile Phones,HOSPITAL DISCHARGE TEAM,VODAFONE LTD,35553729,76.80,
Department of Health,St. Helens&Knowsley Hospitals NHS Trust,30/09/2020,Mobile Phones,HSDU WHISTON,VODAFONE LTD,35553729,36.00,
Department of Health,St. Helens&Knowsley Hospitals NHS Trust,30/09/2020,Mobile Phones,HUMAN RESOURCES - CORE HR,VODAFONE LTD,35553729,139.43,
Department of Health,St. Helens&Knowsley Hospitals NHS Trust,30/09/2020,Mobile Phones,HUMAN RESOURCES - RESOURCING,VODAFONE LTD,35553729,"1,483.73",
Department of Health,St. Helens&Knowsley Hospitals NHS Trust,30/09/2020,Mobile Phones,ICU MEDICAL STAFF WHISTON,VODAFONE LTD,35553729,806.59,
Department of Health,St. Helens&Knowsley Hospitals NHS Trust,30/09/2020,Mobile Phones,ICU NURSING WHISTON,VODAFONE LTD,35553729,9.20,
Department of Health,St. Helens&Knowsley Hospitals NHS Trust,30/09/2020,Mobile Phones,INFANT FEEDING TEAM,VODAFONE LTD,35553729,145.61,
Department of Health,St. Helens&Knowsley Hospitals NHS Trust,30/09/2020,Mobile Phones,INFECTION CONTROL,VODAFONE LTD,35553729,98.02,
Department of Health,St. Helens&Knowsley Hospitals NHS Trust,30/09/2020,Mobile Phones,INFORMATION DEPARTMENT,VODAFONE LTD,35553729,106.00,
Department of Health,St. Helens&Knowsley Hospitals NHS Trust,30/09/2020,Mobile Phones,IV THERAPY ST HELENS,VODAFONE LTD,35553729,227.71,
Department of Health,St. Helens&Knowsley Hospitals NHS Trust,30/09/2020,Mobile Phones,LIBRARY SERVICES,VODAFONE LTD,35553729,36.00,
Department of Health,St. Helens&Knowsley Hospitals NHS Trust,30/09/2020,Mobile Phones,MARSHALLS CROSS MEDICAL CENTRE,VODAFONE LTD,35553729,36.00,
Department of Health,St. Helens&Knowsley Hospitals NHS Trust,30/09/2020,Mobile Phones,MATERNITY THEATRES EMERGENCY WEEKDAYS,VODAFONE LTD,35553729,9.00,
Department of Health,St. Helens&Knowsley Hospitals NHS Trust,30/09/2020,Mobile Phones,MEDICAL CARE GROUP MGT,VODAFONE LTD,35553729,"1,915.52",
Department of Health,St. Helens&Knowsley Hospitals NHS Trust,30/09/2020,Mobile Phones,MGMT SPECIALIST MIDWIVES,VODAFONE LTD,35553729,529.22,
Department of Health,St. Helens&Knowsley Hospitals NHS Trust,30/09/2020,Mobile Phones,MICROBIOLOGY DEPT,VODAFONE LTD,35553729,279.00,
Department of Health,St. Helens&Knowsley Hospitals NHS Trust,30/09/2020,Mobile Phones,MICROBIOLOGY MED STAFF,VODAFONE LTD,35553729,72.00,
Department of Health,St. Helens&Knowsley Hospitals NHS Trust,30/09/2020,Mobile Phones,NEWTON INTERMEDIATE CARE SERVICE,VODAFONE LTD,35553729,140.45,
Department of Health,St. Helens&Knowsley Hospitals NHS Trust,30/09/2020,Mobile Phones,NORTH WEST HEE,VODAFONE LTD,35553729,614.83,
Department of Health,St. Helens&Knowsley Hospitals NHS Trust,30/09/2020,Mobile Phones,NURSING ADMINISTRATION,VODAFONE LTD,35553729,569.50,
Department of Health,St. Helens&Knowsley Hospitals NHS Trust,30/09/2020,Mobile Phones,NURSING DIRECTOR ADMIN STAFF,VODAFONE LTD,35553729,36.00,
Department of Health,St. Helens&Knowsley Hospitals NHS Trust,30/09/2020,Mobile Phones,OBS + GYNAE MEDICAL STAFF,VODAFONE LTD,35553729,108.00,
Department of Health,St. Helens&Knowsley Hospitals NHS Trust,30/09/2020,Mobile Phones,OCCUPATIONAL HEALTH MED,VODAFONE LTD,35553729,36.00,
Department of Health,St. Helens&Knowsley Hospitals NHS Trust,30/09/2020,Mobile Phones,OCCUPATIONAL HEALTH NURS,VODAFONE LTD,35553729,108.36,
Department of Health,St. Helens&Knowsley Hospitals NHS Trust,30/09/2020,Mobile Phones,ORGANISATIONAL L And D,VODAFONE LTD,35553729,9.00,
Department of Health,St. Helens&Knowsley Hospitals NHS Trust,30/09/2020,Mobile Phones,ORTHOPAEDIC MEDICAL STAFF,VODAFONE LTD,35553729,144.20,
Department of Health,St. Helens&Knowsley Hospitals NHS Trust,30/09/2020,Mobile Phones,OUTPATIENTS ST HELENS,VODAFONE LTD,35553729,36.00,
Department of Health,St. Helens&Knowsley Hospitals NHS Trust,30/09/2020,Mobile Phones,PAED SPECIALIST NURSES,VODAFONE LTD,35553729,100.91,
Department of Health,St. Helens&Knowsley Hospitals NHS Trust,30/09/2020,Mobile Phones,PAEDIATRIC MEDICAL STAFF,VODAFONE LTD,35553729,9.00,
Department of Health,St. Helens&Knowsley Hospitals NHS Trust,30/09/2020,Mobile Phones,PAEDIATRICS WARD CLERKS,VODAFONE LTD,35553729,9.00,
Department of Health,St. Helens&Knowsley Hospitals NHS Trust,30/09/2020,Mobile Phones,PALLIATIVE CARE WHISTON,VODAFONE LTD,35553729,127.00,
Department of Health,St. Helens&Knowsley Hospitals NHS Trust,30/09/2020,Mobile Phones,PATHOLOGY GENERAL,VODAFONE LTD,35553729,549.06,
Department of Health,St. Helens&Knowsley Hospitals NHS Trust,30/09/2020,Mobile Phones,PATIENT ACCESS MGMT,VODAFONE LTD,35553729,108.00,
Department of Health,St. Helens&Knowsley Hospitals NHS Trust,30/09/2020,Mobile Phones,PAYING PATIENTS,VODAFONE LTD,35553729,108.00,
Department of Health,St. Helens&Knowsley Hospitals NHS Trust,30/09/2020,Mobile Phones,PAYROLL SERVICES,VODAFONE LTD,35553729,262.75,
Department of Health,St. Helens&Knowsley Hospitals NHS Trust,30/09/2020,Mobile Phones,PFI DESIGN + CONSTRUCTION,VODAFONE LTD,35553729,458.06,
Department of Health,St. Helens&Knowsley Hospitals NHS Trust,30/09/2020,Mobile Phones,PHARMACY GENERAL,VODAFONE LTD,35553729,567.91,
Department of Health,St. Helens&Knowsley Hospitals NHS Trust,30/09/2020,Mobile Phones,PROJECTS And TRAINING,VODAFONE LTD,35553729,117.14,
Department of Health,St. Helens&Knowsley Hospitals NHS Trust,30/09/2020,Mobile Phones,RADIOGRAPHY WHISTON,VODAFONE LTD,35553729,102.40,
Department of Health,St. Helens&Knowsley Hospitals NHS Trust,30/09/2020,Mobile Phones,RADIOLOGY MEDICAL STAFF,VODAFONE LTD,35553729,72.00,
Department of Health,St. Helens&Knowsley Hospitals NHS Trust,30/09/2020,Mobile Phones,RD AND I,VODAFONE LTD,35553729,118.14,
Department of Health,St. Helens&Knowsley Hospitals NHS Trust,30/09/2020,Mobile Phones,REABLEMENT TEAM,VODAFONE LTD,35553729,144.00,
Department of Health,St. Helens&Knowsley Hospitals NHS Trust,30/09/2020,Mobile Phones,REGIONAL CANCER TRANSFORMATION,VODAFONE LTD,35553729,138.50,
Department of Health,St. Helens&Knowsley Hospitals NHS Trust,30/09/2020,Mobile Phones,RESPIRATORY NURSING,VODAFONE LTD,35553729,144.00,
Department of Health,St. Helens&Knowsley Hospitals NHS Trust,30/09/2020,Mobile Phones,RESPIRATORY SNR MEDICAL,VODAFONE LTD,35553729,232.96,
Department of Health,St. Helens&Knowsley Hospitals NHS Trust,30/09/2020,Mobile Phones,RESUSCITATION TRAINING,VODAFONE LTD,35553729,36.00,
Department of Health,St. Helens&Knowsley Hospitals NHS Trust,30/09/2020,Mobile Phones,SAFEGUARDING,VODAFONE LTD,35553729,36.00,
Department of Health,St. Helens&Knowsley Hospitals NHS Trust,30/09/2020,Mobile Phones,SANDERSON SUITE GENERAL SURGERY,VODAFONE LTD,35553729,72.00,
Department of Health,St. Helens&Knowsley Hospitals NHS Trust,30/09/2020,Mobile Phones,SEDDON SUITE TRAUMA REHAB UNIT,VODAFONE LTD,35553729,15.10,
Department of Health,St. Helens&Knowsley Hospitals NHS Trust,30/09/2020,Mobile Phones,SEPSIS,VODAFONE LTD,35553729,72.00,
Department of Health,St. Helens&Knowsley Hospitals NHS Trust,30/09/2020,Mobile Phones,SERV INCR 4 TEACHING-SIFT,VODAFONE LTD,35553729,180.00,
Department of Health,St. Helens&Knowsley Hospitals NHS Trust,30/09/2020,Mobile Phones,SERVICE DELIVERY INFRASTRUCTURE,VODAFONE LTD,35553729,156.00,
Department of Health,St. Helens&Knowsley Hospitals NHS Trust,30/09/2020,Mobile Phones,SERVICE DELIVERY OPERATIONS,VODAFONE LTD,35553729,36.00,
Department of Health,St. Helens&Knowsley Hospitals NHS Trust,30/09/2020,Mobile Phones,SEXUAL HEALTH,VODAFONE LTD,35553729,519.53,
Department of Health,St. Helens&Knowsley Hospitals NHS Trust,30/09/2020,Mobile Phones,SHARED CARE RECORD - ST HELENS HEALTH ECONOMY,VODAFONE LTD,35553729,"1,004.90",
Department of Health,St. Helens&Knowsley Hospitals NHS Trust,30/09/2020,Mobile Phones,SOHT PHLEBOTOMY,VODAFONE LTD,35553729,108.00,
Department of Health,St. Helens&Knowsley Hospitals NHS Trust,30/09/2020,Mobile Phones,ST HELENS CONTACT CARES REABLEMENT TEAM,VODAFONE LTD,35553729,18.41,
Department of Health,St. Helens&Knowsley Hospitals NHS Trust,30/09/2020,Mobile Phones,ST HELENS REABLEMENT,VODAFONE LTD,35553729,18.00,
Department of Health,St. Helens&Knowsley Hospitals NHS Trust,30/09/2020,Mobile Phones,STROKE MEDICAL STAFFING,VODAFONE LTD,35553729,153.20,
Department of Health,St. Helens&Knowsley Hospitals NHS Trust,30/09/2020,Mobile Phones,SURGICAL CARE MANAGEMENT,VODAFONE LTD,35553729,468.00,
Department of Health,St. Helens&Knowsley Hospitals NHS Trust,30/09/2020,Mobile Phones,SURGICAL CARE SECS,VODAFONE LTD,35553729,36.00,
Department of Health,St. Helens&Knowsley Hospitals NHS Trust,30/09/2020,Mobile Phones,THEATRES BURNS + PLASTICS,VODAFONE LTD,35553729,46.10,
Department of Health,St. Helens&Knowsley Hospitals NHS Trust,30/09/2020,Mobile Phones,THEATRES DIRECTORATE MGT,VODAFONE LTD,35553729,543.71,
Department of Health,St. Helens&Knowsley Hospitals NHS Trust,30/09/2020,Mobile Phones,THEATRES GEN SURGERY/UROL,VODAFONE LTD,35553729,18.00,
Department of Health,St. Helens&Knowsley Hospitals NHS Trust,30/09/2020,Mobile Phones,THEATRES MAIN ST HELEN'S,VODAFONE LTD,35553729,73.37,
Department of Health,St. Helens&Knowsley Hospitals NHS Trust,30/09/2020,Mobile Phones,THEATRES MATERNITY WH,VODAFONE LTD,35553729,18.00,
Department of Health,St. Helens&Knowsley Hospitals NHS Trust,30/09/2020,Mobile Phones,THEATRES MEDICAL STAFF,VODAFONE LTD,35553729,114.50,
Department of Health,St. Helens&Knowsley Hospitals NHS Trust,30/09/2020,Mobile Phones,THEATRES TRAU ORTHOPAEDIC,VODAFONE LTD,35553729,9.00,
Department of Health,St. Helens&Knowsley Hospitals NHS Trust,30/09/2020,Mobile Phones,THERAPY MANAGEMENT & ADMIN.,VODAFONE LTD,35553729,549.14,
Department of Health,St. Helens&Knowsley Hospitals NHS Trust,30/09/2020,Mobile Phones,TISSUE VIABILITY,VODAFONE LTD,35553729,9.00,
Department of Health,St. Helens&Knowsley Hospitals NHS Trust,30/09/2020,Mobile Phones,TRUST RECHARGES,VODAFONE LTD,35553729,498.36,
Department of Health,St. Helens&Knowsley Hospitals NHS Trust,30/09/2020,Mobile Phones,UROLOGY MEDICAL STAFF,VODAFONE LTD,35553729,333.00,
Department of Health,St. Helens&Knowsley Hospitals NHS Trust,30/09/2020,Mobile Phones,UROLOGY SUITE,VODAFONE LTD,35553729,81.00,
Department of Health,St. Helens&Knowsley Hospitals NHS Trust,30/09/2020,Mobile Phones,WARD 1C ACUTE MEDICAL UNIT,VODAFONE LTD,35553729,72.00,
Department of Health,St. Helens&Knowsley Hospitals NHS Trust,30/09/2020,Mobile Phones,WARD 3A PLASTICS,VODAFONE LTD,35553729,119.40,
Department of Health,St. Helens&Knowsley Hospitals NHS Trust,30/09/2020,Mobile Phones,WARD 3E GYNAECOLOGY,VODAFONE LTD,35553729,36.00,
Department of Health,St. Helens&Knowsley Hospitals NHS Trust,30/09/2020,Mobile Phones,WARD 3F PAEDIATRICS,VODAFONE LTD,35553729,95.96,
Department of Health,St. Helens&Knowsley Hospitals NHS Trust,30/09/2020,Mobile Phones,WARD 4D BURNS,VODAFONE LTD,35553729,28.80,
Department of Health,St. Helens&Knowsley Hospitals NHS Trust,30/09/2020,Mobile Phones,WEST MIDLANDS HEE,VODAFONE LTD,35553729,252.00,
Department of Health,St. Helens&Knowsley Hospitals NHS Trust,30/09/2020,Mobile Phones,WHIS THEATRES EMERG WKDAY NGTS WKEND,VODAFONE LTD,35553729,36.00,
Department of Health,St. Helens&Knowsley Hospitals NHS Trust,30/09/2020,Mobile Phones,WHISTON EQUIPMENT POOL,VODAFONE LTD,35553729,36.00,
Department of Health,St. Helens&Knowsley Hospitals NHS Trust,30/09/2020,Mobile Phones,WORKFORCE INTELLIGENCE,VODAFONE LTD,35553729,108.30,
Department of Health,St. Helens&Knowsley Hospitals NHS Trust,30/09/2020,NHS Local Debtors Adj,Balance Sheet,VODAFONE LTD,35553729,"5,454.06",
Department of Health,St. Helens&Knowsley Hospitals NHS Trust,30/09/2020,Office Equipment,SERVICE DELIVERY OPERATIONS,CANON UK LTD,35638451,"37,496.88",
Department of Health,St. Helens&Knowsley Hospitals NHS Trust,30/09/2020,Other recvables - Current,Balance Sheet,VODAFONE LTD,35553729,36.00,
Department of Health,St. Helens&Knowsley Hospitals NHS Trust,30/09/2020,Rates,RATES/WATER WHISTON,KNOWSLEY METROPOLITAN BOROUGH COUNCIL,35648261,"305,152.00",
Department of Health,St. Helens&Knowsley Hospitals NHS Trust,30/09/2020,Rates,RATES/WATER ST HELENS,ST HELENS COUNCIL,35648262,"60,416.00",
Department of Health,St. Helens&Knowsley Hospitals NHS Trust,30/09/2020,Rent,B + P MEDICAL STAFF,BETSI CADWALADR UNIVERSITY HEALTH BOARD,35614500,"64,551.11",
Department of Health,St. Helens&Knowsley Hospitals NHS Trust,30/09/2020,Rent,B + P MEDICAL STAFF,BETSI CADWALADR UNIVERSITY HEALTH BOARD,35710511,"64,551.10",
Department of Health,St. Helens&Knowsley Hospitals NHS Trust,30/09/2020,Rent,STAFF ACCOMMODATION,TORUS62 LTD,35435952,"28,548.00",
Department of Health,St. Helens&Knowsley Hospitals NHS Trust,30/09/2020,SrvcsRecd-FoundationTrust,COVID,ALDER HEY CHILDRENS NHS FOUNDATION TRUST,35542751,"153,064.00",
Department of Health,St. Helens&Knowsley Hospitals NHS Trust,30/09/2020,SrvcsRecd-FoundationTrust,STP,LIVERPOOL UNIVERSITY HOSPITALS NHS FOUNDATION TRUST,35508256,"59,000.00",
Department of Health,St. Helens&Knowsley Hospitals NHS Trust,30/09/2020,SrvcsRecd-FoundationTrust,CHEMICAL PATHOLOGY DEPT,LIVERPOOL UNIVERSITY HOSPITALS NHS FOUNDATION TRUST,35542736,"55,011.90",
Department of Health,St. Helens&Knowsley Hospitals NHS Trust,30/09/2020,SrvcsRecd-FoundationTrust,A + E MEDICAL STAFF WH,NORTH WEST BOROUGHS HEALTHCARE NHS FOUNDATION TRUST,35472304,"83,777.00",
Department of Health,St. Helens&Knowsley Hospitals NHS Trust,30/09/2020,SrvcsRecd-Other NHS,COVID,COMMUNITY HEALTH PARTNERSHIPS LTD,35496313,"72,148.97",
Department of Health,St. Helens&Knowsley Hospitals NHS Trust,30/09/2020,Stocks Raw Materials,Balance Sheet,AAH PHARMACEUTICALS LTD,35415609,"62,518.66",
Department of Health,St. Helens&Knowsley Hospitals NHS Trust,30/09/2020,Stocks Raw Materials,Balance Sheet,AAH PHARMACEUTICALS LTD,35527889,"56,927.44",
Department of Health,St. Helens&Knowsley Hospitals NHS Trust,30/09/2020,Stocks Raw Materials,Balance Sheet,ALLIANCE HEALTHCARE DISTRIBUTION LTD,35509521,"18,220.50",
Department of Health,St. Helens&Knowsley Hospitals NHS Trust,30/09/2020,Stocks Raw Materials,Balance Sheet,ALLIANCE HEALTHCARE DISTRIBUTION LTD,35509521,"71,827.80",
Department of Health,St. Helens&Knowsley Hospitals NHS Trust,30/09/2020,Stocks Raw Materials,Balance Sheet,ALLIANCE HEALTHCARE DISTRIBUTION LTD,35635822,"14,247.04",
Department of Health,St. Helens&Knowsley Hospitals NHS Trust,30/09/2020,Stocks Raw Materials,Balance Sheet,ALLIANCE HEALTHCARE DISTRIBUTION LTD,35635822,"73,259.71",
Department of Health,St. Helens&Knowsley Hospitals NHS Trust,30/09/2020,Stocks Raw Materials,Balance Sheet,ALLOGA UK LTD,35509524,"35,469.59",
Department of Health,St. Helens&Knowsley Hospitals NHS Trust,30/09/2020,Stocks Raw Materials,Balance Sheet,ALLOGA UK LTD,35635821,"62,062.65",
Department of Health,St. Helens&Knowsley Hospitals NHS Trust,30/09/2020,Stocks Raw Materials,Balance Sheet,HEALTHCARE AT HOME LTD,35509525,"85,029.90",
Department of Health,St. Helens&Knowsley Hospitals NHS Trust,30/09/2020,Stocks Raw Materials,Balance Sheet,HEALTHCARE AT HOME LTD,35509527,"85,343.12",
Department of Health,St. Helens&Knowsley Hospitals NHS Trust,30/09/2020,Stocks Raw Materials,Balance Sheet,HEALTHCARE AT HOME LTD,35635824,"84,959.29",
Department of Health,St. Helens&Knowsley Hospitals NHS Trust,30/09/2020,Stocks Raw Materials,Balance Sheet,HEALTHCARE AT HOME LTD,35635825,"57,758.14",
Department of Health,St. Helens&Knowsley Hospitals NHS Trust,30/09/2020,Stocks Raw Materials,Balance Sheet,NOVARTIS PHARMACEUTICALS UK LTD,35607105,"24,521.62",
Department of Health,St. Helens&Knowsley Hospitals NHS Trust,30/09/2020,Stocks Raw Materials,Balance Sheet,NOVARTIS PHARMACEUTICALS UK LTD,35607105,"4,158.00",
Department of Health,St. Helens&Knowsley Hospitals NHS Trust,30/09/2020,Stocks Raw Materials,Balance Sheet,NOVARTIS PHARMACEUTICALS UK LTD,35607105,11.06,
Department of Health,St. Helens&Knowsley Hospitals NHS Trust,30/09/2020,Stocks Raw Materials,Balance Sheet,NOVARTIS PHARMACEUTICALS UK LTD,35607105,5.42,
Department of Health,St. Helens&Knowsley Hospitals NHS Trust,30/09/2020,Stocks Raw Materials,Balance Sheet,NOVARTIS PHARMACEUTICALS UK LTD,35607105,4.49,
Department of Health,St. Helens&Knowsley Hospitals NHS Trust,30/09/2020,Stocks Raw Materials,Balance Sheet,NOVARTIS PHARMACEUTICALS UK LTD,35673506,"24,521.62",
Department of Health,St. Helens&Knowsley Hospitals NHS Trust,30/09/2020,Stocks Raw Materials,Balance Sheet,NOVARTIS PHARMACEUTICALS UK LTD,35673506,"1,254.09",
Department of Health,St. Helens&Knowsley Hospitals NHS Trust,30/09/2020,Stocks Raw Materials,Balance Sheet,NOVARTIS PHARMACEUTICALS UK LTD,35673506,25.70,
Department of Health,St. Helens&Knowsley Hospitals NHS Trust,30/09/2020,Stocks Raw Materials,Balance Sheet,NOVARTIS PHARMACEUTICALS UK LTD,35673506,49.44,
Department of Health,St. Helens&Knowsley Hospitals NHS Trust,30/09/2020,Stocks Raw Materials,Balance Sheet,NOVARTIS PHARMACEUTICALS UK LTD,35673506,655.49,
Department of Health,St. Helens&Knowsley Hospitals NHS Trust,30/09/2020,Stocks Raw Materials,Balance Sheet,NOVARTIS PHARMACEUTICALS UK LTD,35673506,22.46,
Department of Health,St. Helens&Knowsley Hospitals NHS Trust,30/09/2020,Stocks Raw Materials,Balance Sheet,NOVARTIS PHARMACEUTICALS UK LTD,35673506,22.13,
Department of Health,St. Helens&Knowsley Hospitals NHS Trust,30/09/2020,Stocks Raw Materials,Balance Sheet,NOVARTIS PHARMACEUTICALS UK LTD,35673506,98.88,
Department of Health,St. Helens&Knowsley Hospitals NHS Trust,30/09/2020,Stocks Raw Materials,Balance Sheet,NOVARTIS PHARMACEUTICALS UK LTD,35673506,4.49,
Department of Health,St. Helens&Knowsley Hospitals NHS Trust,30/09/2020,Stocks Raw Materials,Balance Sheet,PHOENIX HEALTHCARE DISTRIBUTION LTD,35701694,"4,133.03",
Department of Health,St. Helens&Knowsley Hospitals NHS Trust,30/09/2020,Stocks Raw Materials,Balance Sheet,PHOENIX HEALTHCARE DISTRIBUTION LTD,35701694,"21,009.69",
Department of Health,St. Helens&Knowsley Hospitals NHS Trust,30/09/2020,Various Items,Various Departments,SUPPLY CHAIN COORDINATION LIMITED,35405771,"109,844.54",
Department of Health,St. Helens&Knowsley Hospitals NHS Trust,30/09/2020,Various Items,Various Departments,SUPPLY CHAIN COORDINATION LIMITED,35508188,"201,701.99",
Department of Health,St. Helens&Knowsley Hospitals NHS Trust,30/09/2020,Various Items,Various Departments,SUPPLY CHAIN COORDINATION LIMITED,35571239,"157,007.45",
Department of Health,St. Helens&Knowsley Hospitals NHS Trust,30/09/2020,Various Items,Various Departments,SUPPLY CHAIN COORDINATION LIMITED,35571295,"103,244.72",
Department of Health,St. Helens&Knowsley Hospitals NHS Trust,30/09/2020,Various Items,Various Departments,SUPPLY CHAIN COORDINATION LIMITED,35703981,"137,197.29",
Department of Health,St. Helens&Knowsley Hospitals NHS Trust,30/09/2020,Water,RATES/WATER WHISTON,WATER PLUS,35527012,"35,985.65",
